bitfinex/quotes_ETHUSD_20250425
["timestamp","ask_amount","ask_price","bid_price","bid_amount"]
[1745612592253,11.09428465,1802.8,1802.6,4.801]
[1745612592454,5.5472347,1802.7,1802.6,4.801]
[1745612593488,6.65666346,1802.7,1802.6,4.801]
[1745612594188,6.3946561,1803.0,1802.6,4.801]
[1745612594189,6.11,1803.2,1802.7,0.8146]
[1745612594491,6.11,1803.3,1803.1,5.5459693]
[1745612594657,0.7908,1803.4,1803.2,4.801]
[1745612594858,6.96955309,1803.4,1803.2,4.801]
[1745612595481,0.63357436,1803.4,1803.2,4.801]
[1745612595677,5.54526177,1803.4,1803.2,4.801]
[1745612596393,17.2000021,1803.5,1803.2,4.801]
[1745612596603,17.2000021,1803.5,1803.3,4.773]
[1745612596604,6.11,1803.5,1803.3,4.773]
[1745612596759,6.36678151,1803.4,1803.3,4.773]
[1745612598504,5.54508151,1803.4,1803.3,4.773]
[1745612599076,11.65495569,1803.5,1803.3,4.773]
[1745612599376,13.45288096,1803.5,1803.3,4.773]
[1745612600203,11.65495569,1803.5,1803.3,4.773]
[1745612601110,5.54508151,1803.4,1803.3,4.773]
[1745612601984,11.65496114,1803.5,1803.3,4.773]
[1745612602419,11.65496114,1803.5,1803.1,0.7585]
[1745612602624,11.65496114,1803.5,1803.4,4.772]
[1745612602825,13.45288706,1803.5,1803.4,4.772]
[1745612603991,6.11,1803.5,1803.4,4.772]
[1745612604391,5.54420008,1803.7,1803.4,4.772]
[1745612604581,5.54372148,1803.9,1803.5,5.54467405]
[1745612604805,11.08751958,1803.9,1803.5,5.54467405]
[1745612605109,5.54372148,1803.9,1803.5,5.5445812]
[1745612605313,5.54355908,1803.9,1803.5,5.5445812]
[1745612605533,5.54355908,1803.9,1803.5,11.08915362]
[1745612605909,5.54364083,1803.9,1803.4,5.5521]
[1745612606106,5.54311332,1804.1,1803.7,6.31629554]
[1745612606323,5.54311332,1804.1,1803.8,4.772]
[1745612606802,5.54294948,1804.1,1803.8,10.31583166]
[1745612607003,5.54244706,1804.3,1803.9,0.7619]
[1745612607206,0.8332,1804.3,1803.0,0.598125]
[1745612607403,5.5460391,1803.1,1802.7,10.31806736]
[1745612607632,5.54610258,1803.1,1802.7,4.771]
[1745612607796,0.84829938,1803.5,1802.7,4.771]
[1745612608001,5.54733691,1802.7,1802.3,0.8296]
[1745612608408,5.54733691,1802.7,1802.4,4.771]
[1745612608615,5.54747649,1802.7,1802.4,4.771]
[1745612608813,5.54711193,1802.8,1802.4,4.771]
[1745612609016,5.54711193,1802.8,1802.5,4.771]
[1745612609311,5.54723949,1802.7,1802.5,4.771]
[1745612610832,11.09473249,1802.7,1802.5,4.771]
[1745612611211,5.54754243,1802.6,1802.5,4.771]
[1745612611410,5.54742675,1802.7,1802.5,4.771]
[1745612612334,5.54742675,1802.7,1802.6,4.772]
[1745612613152,5.5475632,1802.6,1802.3,0.8296]
[1745612613310,5.54795058,1802.5,1802.4,4.772]
[1745612614527,5.54766206,1802.6,1802.4,4.772]
[1745612616556,11.09549963,1802.6,1802.4,4.772]
[1745612616764,5.54766206,1802.6,1802.4,4.772]
[1745612617123,5.5478502,1802.5,1802.4,4.772]
[1745612621367,5.54848472,1802.3,1802.1,0.8957]
[1745612621771,5.54848472,1802.3,1802.2,4.773]
[1745612622272,5.54833385,1802.4,1802.2,4.773]
[1745612626487,5.54846584,1802.3,1802.1,0.8957]
[1745612626644,5.54877372,1802.2,1802.1,0.1]
[1745612626847,12.42517372,1802.2,1802.1,1e-08]
[1745612627044,17.30736761,1802.2,1802.1,1e-08]
[1745612627260,6.31702166,1801.6,1801.5,4.807]
[1745612627474,0.7664,1801.6,1801.5,4.807]
[1745612627682,6.31702166,1801.6,1801.5,4.807]
[1745612627853,5.55062166,1801.6,1801.5,4.807]
[1745612630958,5.55062166,1801.6,1801.5,4.808]
[1745612631887,6.36082978,1801.5,1801.4,0.5]
[1745612632945,16.31912916,1801.5,1801.4,0.5]
[1745612633144,8.55185431,1801.2,1801.1,0.05]
[1745612633350,5.55370432,1800.6,1800.5,0.7707]
[1745612633658,5.55359544,1800.7,1800.3,0.7707]
[1745612633862,5.86315809,1800.8,1800.4,4.808]
[1745612634084,0.3099,1800.8,1800.4,10.36212717]
[1745612634380,11.66297378,1800.9,1800.5,5.5540011]
[1745612634568,5.55308751,1800.8,1800.4,4.808]
[1745612634768,5.5535466,1800.7,1800.4,4.808]
[1745612634977,5.55330793,1800.8,1800.4,4.808]
[1745612635285,5.55345129,1800.7,1800.4,4.808]
[1745612635523,5.55326619,1800.8,1800.4,10.36221027]
[1745612635803,5.55320186,1800.8,1800.4,10.36226343]
[1745612636170,11.663511,1800.7,1800.3,5.5544913]
[1745612636376,11.66342916,1800.7,1800.4,4.809]
[1745612636575,17.21712161,1800.7,1800.4,4.809]
[1745612636800,11.66342916,1800.7,1800.4,4.809]
[1745612637305,6.11,1800.7,1800.4,5.5691]
[1745612637676,11.66353612,1800.7,1800.4,5.5691]
[1745612638612,11.66339757,1800.7,1800.4,5.5691]
[1745612638797,11.66339762,1800.7,1800.4,5.5691]
[1745612638973,5.55374608,1800.6,1800.4,5.5691]
[1745612639807,5.55339762,1800.7,1800.4,5.5691]
[1745612640011,5.55377513,1800.6,1800.4,5.5691]
[1745612640810,6.11,1800.8,1800.4,5.5691]
[1745612641012,5.55364766,1800.7,1800.4,5.5691]
[1745612641511,5.55375338,1800.6,1800.4,5.5691]
[1745612641683,5.55364766,1800.7,1800.4,5.5691]
[1745612641889,5.55381249,1800.6,1800.4,5.5691]
[1745612642607,7.021,1800.8,1800.4,5.5691]
[1745612642820,0.7864,1800.6,1800.1,0.05]
[1745612642980,0.7864,1800.6,1800.2,4.811]
[1745612643181,11.66356159,1800.7,1800.3,6.30610464]
[1745612643480,11.6634517,1800.7,1800.3,6.30605938]
[1745612644013,5.55413331,1800.5,1800.2,4.811]
[1745612644210,11.10840826,1800.5,1800.2,4.811]
[1745612644415,5.55413331,1800.5,1800.2,4.811]
[1745612645310,11.66357188,1800.7,1800.3,5.55448833]
[1745612645476,3.7888,1800.9,1800.4,0.7516]
[1745612645681,5.55318933,1800.8,1800.4,0.7516]
[1745612645881,5.55318933,1800.8,1800.4,6.30579338]
[1745612646105,11.10653829,1800.8,1800.4,6.30579338]
[1745612646311,5.55318933,1800.8,1800.4,6.30579338]
[1745612646520,5.55318933,1800.8,1800.4,0.7516]
[1745612646731,5.55358518,1800.7,1800.4,0.7516]
[1745612647012,5.55432126,1800.4,1800.3,16.653]
[1745612647519,5.5546863,1800.3,1800.2,4.811]
[1745612648983,5.55412167,1800.5,1800.2,4.811]
[1745612649310,5.55450522,1800.4,1800.2,4.811]
[1745612649613,11.10912307,1800.4,1800.2,4.811]
[1745612649793,5.55450522,1800.4,1800.2,4.811]
[1745612649998,5.55433094,1800.4,1800.2,4.811]
[1745612650197,5.55462978,1800.3,1800.2,4.811]
[1745612651640,7.22892916,1800.3,1800.2,4.811]
[1745612651932,6.38093834,1800.2,1800.1,0.05]
[1745612652134,12.49093834,1800.2,1800.1,4.862]
[1745612652337,17.38032509,1800.2,1800.1,4.862]
[1745612652522,17.38032509,1800.2,1800.1,0.05]
[1745612653034,10.17275493,1800.0,1799.9,0.4124665]
[1745612654124,0.8102,1799.8,1799.2,16.656]
[1745612654435,5.55771688,1799.3,1799.2,21.469]
[1745612654635,6.32550728,1799.4,1799.2,21.469]
[1745612654833,9.34232578,1799.2,1799.1,0.05]
[1745612655008,2.97015439,1799.2,1799.1,0.05]
[1745612655210,5.55802578,1799.2,1799.1,0.05]
[1745612655408,5.55802578,1799.2,1799.1,4.863]
[1745612656203,5.55802578,1799.2,1799.1,0.05]
[1745612656443,5.55802578,1799.2,1799.1,4.863]
[1745612656612,7.2806032,1799.2,1799.1,4.863]
[1745612657318,8.0645032,1799.2,1799.1,4.983]
[1745612657618,8.0645032,1799.2,1799.1,0.05]
[1745612657821,11.0645032,1799.2,1799.1,0.05]
[1745612659934,8.55774365,1799.3,1799.1,4.983]
[1745612660138,5.55760079,1799.4,1799.1,4.983]
[1745612660139,6.9252,1799.5,1799.1,4.983]
[1745612660347,6.57334289,1799.9,1799.4,5.55719431]
[1745612660627,5.55624723,1799.8,1799.5,4.934]
[1745612660825,11.11270393,1799.8,1799.5,4.934]
[1745612661025,5.5565318,1799.7,1799.5,4.934]
[1745612661454,5.55679039,1799.6,1799.5,4.934]
[1745612661954,5.55667475,1799.7,1799.5,4.934]
[1745612662553,11.11343116,1799.7,1799.5,4.934]
[1745612662758,5.55679039,1799.6,1799.2,6.30830759]
[1745612663061,5.55679039,1799.6,1799.3,4.934]
[1745612664224,6.66795076,1799.7,1799.3,10.49152541]
[1745612664957,17.22281135,1799.8,1799.4,5.55734012]
[1745612665158,17.22276546,1799.8,1799.4,5.55734012]
[1745612665341,11.66633388,1799.8,1799.3,10.49152541]
[1745612665570,5.55606018,1799.9,1799.5,6.32828735]
[1745612665880,5.5561729,1799.8,1799.3,5.7054]
[1745612666183,5.55701441,1799.6,1799.3,5.7054]
[1745612667084,5.55716084,1799.5,1799.2,16.665]
[1745612667383,5.55709919,1799.5,1799.4,4.934]
[1745612667557,6.11,1799.7,1799.6,5.55679039]
[1745612667882,5.55524352,1800.2,1799.8,5.55616317]
[1745612668072,5.55529781,1800.1,1799.9,4.934]
[1745612668270,5.55515276,1800.2,1799.9,4.934]
[1745612668582,5.55526763,1800.1,1799.9,5.7349]
[1745612668884,5.55515276,1800.2,1799.9,5.7349]
[1745612669082,5.55540477,1800.1,1799.9,4.934]
[1745612670703,6.38745555,1800.0,1799.9,4.934]
[1745612671966,8.55543602,1800.1,1799.9,4.934]
[1745612672357,5.55570093,1800.0,1799.6,4.934]
[1745612672576,11.66570093,1800.0,1799.6,10.49067729]
[1745612672891,5.55598368,1799.9,1799.6,4.934]
[1745612673904,11.11212213,1799.9,1799.6,4.934]
[1745612674095,5.55598368,1799.9,1799.6,4.934]
[1745612674877,11.11208939,1799.9,1799.6,4.934]
[1745612675285,6.11,1800.0,1799.6,4.934]
[1745612675488,5.55617996,1799.8,1799.6,4.934]
[1745612675775,5.55601436,1799.9,1799.6,4.934]
[1745612675980,18.13255402,1800.0,1799.6,10.49069741]
[1745612676406,12.57672898,1800.0,1799.6,4.934]
[1745612676610,5.55600421,1799.9,1799.6,4.934]
[1745612677174,5.55648163,1799.7,1799.6,4.934]
[1745612677402,5.5561729,1799.8,1799.6,4.934]
[1745612677807,1.81327332,1799.9,1799.6,10.49069722]
[1745612678179,7.36914109,1799.9,1799.6,10.49069722]
[1745612679010,1.81327332,1799.9,1799.7,5.55647871]
[1745612679180,12.02249789,1800.0,1799.6,10.49067726]
[1745612679517,5.5557028,1800.0,1799.7,0.8238]
[1745612679689,5.55588758,1799.9,1799.7,0.8238]
[1745612680932,5.5557028,1800.0,1799.7,0.8238]
[1745612681621,5.55586677,1799.9,1799.7,0.8238]
[1745612681827,5.55624231,1799.8,1799.6,4.934]
[1745612682616,5.55599367,1799.9,1799.6,5.725]
[1745612683004,5.55577048,1800.0,1799.6,5.725]
[1745612683220,5.55577048,1800.0,1799.6,11.28162909]
[1745612683528,5.55590355,1799.9,1799.6,11.28156571]
[1745612683698,5.55590355,1799.9,1799.6,5.725]
[1745612683899,5.55575306,1800.0,1799.6,11.28167748]
[1745612684119,5.55512486,1800.2,1799.8,5.55595441]
[1745612684367,5.55508204,1800.2,1799.9,0.7703]
[1745612684622,11.11028837,1800.2,1800.0,4.934]
[1745612684902,5.55524693,1800.1,1800.0,4.934]
[1745612685226,5.55508204,1800.2,1800.0,4.934]
[1745612685797,5.55524693,1800.1,1800.0,4.934]
[1745612686409,5.55508204,1800.2,1800.0,4.934]
[1745612686741,5.55518862,1800.2,1800.0,4.934]
[1745612687029,5.55524693,1800.1,1800.0,4.934]
[1745612687230,5.55518862,1800.2,1800.0,4.934]
[1745612687641,5.55474067,1800.3,1800.0,4.934]
[1745612687949,5.55447293,1800.4,1800.1,0.7567]
[1745612688357,6.11,1800.6,1800.1,0.7567]
[1745612688358,0.7753,1800.7,1800.1,0.7567]
[1745612688560,5.55351169,1800.7,1800.2,5.55488646]
[1745612688761,5.55403921,1800.5,1800.1,0.7567]
[1745612688937,5.55384106,1800.6,1800.1,6.31179685]
[1745612689258,5.55404012,1800.5,1800.1,6.31175592]
[1745612689618,5.55436799,1800.4,1800.1,0.7567]
[1745612691354,5.55436799,1800.4,1800.1,6.31191513]
[1745612691758,5.55436799,1800.4,1800.1,0.7567]
[1745612692450,5.55463247,1800.3,1800.1,0.7567]
[1745612692755,5.55436799,1800.4,1800.1,0.7567]
[1745612693563,11.66389514,1800.6,1800.2,5.55479767]
[1745612693852,11.66389514,1800.6,1800.4,0.7634]
[1745612694041,11.66389514,1800.6,1800.4,5.7644]
[1745612694759,5.55401277,1800.5,1800.4,5.001]
[1745612694960,12.83028465,1800.6,1800.0,0.7634]
[1745612694961,8.03738951,1800.6,1800.0,0.7634]
[1745612695259,5.55546003,1800.1,1800.0,5.001]
[1745612698964,5.55493834,1800.2,1800.0,5.001]
[1745612699159,5.55483601,1800.3,1800.0,5.001]
[1745612699862,5.55513486,1800.2,1800.0,5.001]
[1745612700069,5.55495177,1800.2,1800.0,5.001]
[1745612701545,5.55483601,1800.3,1800.0,5.001]
[1745612701741,5.55507782,1800.2,1800.0,5.001]
[1745612702251,5.55524693,1800.1,1800.0,5.001]
[1745612705476,5.55496185,1800.2,1800.0,5.001]
[1745612705684,5.55524693,1800.1,1800.0,5.001]
[1745612707979,5.55630422,1799.8,1799.7,5.001]
[1745612710521,6.8956,1800.1,1799.7,5.7676]
[1745612710802,6.11,1800.3,1800.0,0.7666]
[1745612710988,5.55473588,1800.3,1800.1,5.001]
[1745612712094,5.55493834,1800.2,1800.1,5.001]
[1745612712410,6.66590576,1800.2,1800.1,5.001]
[1745612713602,5.55493834,1800.2,1800.1,5.001]
[1745612714421,1.92848951,1800.6,1800.1,5.001]
[1745612714710,5.55462978,1800.3,1800.2,0.7594]
[1745612715027,5.55434264,1800.4,1800.2,0.7594]
[1745612715369,11.10892743,1800.4,1800.2,0.7594]
[1745612715569,11.10890254,1800.4,1800.2,0.7594]
[1745612715783,5.55434264,1800.4,1800.2,0.7594]
[1745612717123,5.55454632,1800.4,1800.2,0.7594]
[1745612717631,11.10914997,1800.4,1800.2,0.7594]
[1745612717819,11.10914997,1800.4,1800.1,5.001]
[1745612717820,5.554746,1800.3,1800.1,5.001]
[1745612717995,6.66546016,1800.4,1800.1,5.001]
[1745612718204,5.55465073,1800.3,1800.1,5.001]
[1745612718529,11.10912423,1800.4,1800.1,5.001]
[1745612718827,5.55454342,1800.4,1800.1,5.001]
[1745612719230,11.10916935,1800.4,1800.1,5.001]
[1745612719418,5.55463278,1800.3,1800.1,5.001]
[1745612720234,5.55451955,1800.4,1800.1,5.001]
[1745612720396,12.27555133,1800.4,1800.1,5.001]
[1745612720598,5.55493834,1800.2,1800.1,5.001]
[1745612722431,5.55493834,1800.2,1800.1,4.92]
[1745612724014,5.55474963,1800.3,1800.1,4.92]
[1745612724600,12.27542386,1800.4,1800.1,4.92]
[1745612724911,5.55438474,1800.4,1800.1,4.92]
[1745612726930,11.66416988,1800.5,1800.2,0.7558]
[1745612727137,5.55432695,1800.4,1800.2,0.7558]
[1745612727731,11.66416988,1800.5,1800.2,0.7558]
[1745612727945,5.5543223,1800.4,1800.2,0.7558]
[1745612729107,11.66416988,1800.5,1800.2,0.7558]
[1745612729306,5.55441665,1800.4,1800.2,0.7558]
[1745612731651,5.55416988,1800.5,1800.2,0.7558]
[1745612732025,8.55383158,1800.6,1800.2,6.31061559]
[1745612732339,14.10779836,1800.6,1800.2,6.31061559]
[1745612732742,3.0,1800.6,1800.3,5.55456585]
[1745612732941,14.10788407,1800.6,1800.2,6.31061559]
[1745612733239,14.10782211,1800.6,1800.2,6.31061559]
[1745612733450,5.55402598,1800.5,1800.2,0.7558]
[1745612733614,5.55402598,1800.5,1800.2,6.31072156]
[1745612733949,8.55387883,1800.6,1800.2,6.31072156]
[1745612733950,14.1078849,1800.6,1800.2,6.31072156]
[1745612734251,5.55406166,1800.5,1800.2,0.7558]
[1745612735046,5.55406166,1800.5,1800.2,6.31070481]
[1745612735248,5.55406166,1800.5,1800.2,0.7558]
[1745612736335,5.55406166,1800.5,1800.2,6.3107381]
[1745612736538,8.55387883,1800.6,1800.2,6.3107381]
[1745612736751,16.21027665,1800.6,1800.2,6.3107381]
[1745612737051,10.65627702,1800.6,1800.2,6.3107381]
[1745612737236,5.55404059,1800.5,1800.2,6.3107381]
[1745612737434,10.65627702,1800.6,1800.2,6.3107381]
[1745612737638,11.66354679,1800.7,1800.3,5.55461139]
[1745612737818,5.55354679,1800.7,1800.4,0.8189]
[1745612738017,5.55354679,1800.7,1800.5,4.919]
[1745612739748,5.5533959,1800.7,1800.5,4.919]
[1745612740966,6.9284,1801.1,1800.8,5.55296608]
[1745612741165,6.9284,1801.1,1800.7,5.5533959]
[1745612741330,12.48073136,1801.1,1800.7,5.55322523]
[1745612741864,11.66233136,1801.1,1800.7,5.55320088]
[1745612742544,17.21475381,1801.1,1800.7,5.55320088]
[1745612742866,5.55249644,1801.0,1800.6,11.8796211]
[1745612743165,5.55249644,1801.0,1800.6,11.87958704]
[1745612743470,5.55249644,1801.0,1800.6,6.32608042]
[1745612743645,5.55249644,1801.0,1800.7,5.55335754]
[1745612743847,11.66233136,1801.1,1800.7,5.55335754]
[1745612744051,17.21475381,1801.1,1800.7,5.55335754]
[1745612744348,11.66233136,1801.1,1800.7,5.55335754]
[1745612744866,8.55170593,1801.3,1800.8,6.3183429]
[1745612745066,14.10353654,1801.3,1800.9,10.47162085]
[1745612745233,5.5518628,1801.2,1800.9,4.919]
[1745612745436,8.55170593,1801.3,1800.9,10.47177488]
[1745612745661,5.55170593,1801.3,1800.9,10.47168805]
[1745612746059,5.55170593,1801.3,1800.9,10.47163304]
[1745612746257,5.5514054,1801.4,1801.1,0.8226]
[1745612746666,5.55154858,1801.3,1801.1,0.8226]
[1745612747149,5.55157992,1801.3,1801.1,0.8226]
[1745612747951,11.10287534,1801.4,1801.1,0.8226]
[1745612748285,5.5514054,1801.4,1801.1,0.8226]
[1745612749582,5.55159265,1801.3,1801.1,0.8226]
[1745612749951,5.5514054,1801.4,1801.1,0.8226]
[1745612750389,5.55171946,1801.3,1801.1,0.8226]
[1745612752090,5.55141516,1801.4,1801.1,0.8226]
[1745612752588,9.31097791,1801.5,1801.1,0.8226]
[1745612752754,8.55107791,1801.5,1801.1,6.37458677]
[1745612752959,8.55095311,1801.5,1801.2,5.551812]
[1745612753151,8.55095311,1801.5,1801.3,4.847]
[1745612753356,6.31018741,1801.7,1801.3,10.39843779]
[1745612753555,5.55048741,1801.7,1801.4,0.7875]
[1745612753967,5.55017445,1801.8,1801.4,0.7875]
[1745612754164,5.55032372,1801.7,1801.4,6.39415112]
[1745612754385,5.55017445,1801.8,1801.4,6.33864407]
[1745612754574,5.55031887,1801.7,1801.4,6.33864407]
[1745612755176,5.55016929,1801.8,1801.4,6.33864407]
[1745612755390,8.59987874,1801.9,1801.4,0.7875]
[1745612755391,0.05,1801.9,1801.4,0.7875]
[1745612755720,0.05,1801.9,1801.7,0.7684]
[1745612755855,0.05,1801.9,1801.7,5.6154]
[1745612756491,0.05,1801.9,1801.7,11.16571143]
[1745612756667,0.05,1801.9,1801.7,5.6154]
[1745612760101,0.05,1801.9,1801.5,6.05092273]
[1745612760102,5.55000555,1801.8,1801.5,1.2855]
[1745612760316,5.55048902,1801.7,1801.6,4.845]
[1745612762902,5.55048902,1801.7,1801.5,0.5]
[1745612762903,5.55062166,1801.6,1801.5,0.5]
[1745612763106,6.40066091,1801.6,1801.5,0.5]
[1745612764200,7.22516091,1801.6,1801.5,0.5]
[1745612769310,7.63340371,1801.6,1801.5,0.5]
[1745612769515,9.06279793,1801.6,1801.5,0.5]
[1745612772484,15.17279793,1801.6,1801.5,0.5]
[1745612773430,14.76455513,1801.6,1801.5,0.5]
[1745612773779,13.91451588,1801.6,1801.5,0.5]
[1745612775426,13.09001588,1801.6,1801.5,0.5]
[1745612775633,11.66062166,1801.6,1801.5,0.5]
[1745612776041,6.11,1801.6,1801.5,0.5]
[1745612776218,6.11,1801.6,1801.5,1.3087]
[1745612778327,5.55040255,1801.7,1801.5,1.3087]
[1745612778520,5.55040255,1801.7,1801.6,4.846]
[1745612779495,5.55022113,1801.8,1801.6,4.846]
[1745612779689,7.27623184,1801.8,1801.6,4.846]
[1745612780401,0.05,1801.9,1801.7,5.55005052]
[1745612780602,0.05,1801.9,1801.8,0.8087]
[1745612785531,5.5999243,1801.9,1801.6,5.6547]
[1745612785698,0.05,1801.9,1801.6,11.20529811]
[1745612787596,5.59973039,1801.9,1801.6,11.20529811]
[1745612787930,0.05,1801.9,1801.7,11.10032885]
[1745612788128,0.05,1801.9,1801.7,5.55014762]
[1745612788832,0.05,1801.9,1801.8,0.8087]
[1745612789200,0.05,1801.9,1801.8,6.35870555]
[1745612789597,0.05,1801.9,1801.8,0.8087]
[1745612790895,0.05,1801.9,1801.8,6.35870555]
[1745612791301,0.05,1801.9,1801.8,0.8087]
[1745612791701,0.05,1801.9,1801.8,6.35870555]
[1745612792033,0.05,1801.9,1801.8,0.8087]
[1745612793701,0.05,1801.9,1801.8,6.35870555]
[1745612799614,0.05,1801.9,1801.8,7.2087448]
[1745612799912,0.05,1801.9,1801.8,7.26423046]
[1745612800118,0.05,1801.9,1801.8,7.81423046]
[1745612800442,0.05,1801.9,1801.8,6.90870555]
[1745612801846,0.05,1801.9,1801.8,6.96418854]
[1745612802746,0.05,1801.9,1801.8,6.96418851]
[1745612803622,0.05,1801.9,1801.8,6.90870555]
[1745612806531,0.05,1801.9,1801.8,10.8142218]
[1745612806848,1e-08,1801.9,1801.8,10.8142218]
[1745612807545,0.05,1802.9,1802.8,5.546927]
[1745612807733,0.05,1802.9,1802.8,4.791]
[1745612810051,0.05,1802.9,1802.8,10.337927]
[1745612810226,0.05,1802.9,1802.8,4.791]
[1745612810415,0.05,1802.9,1802.8,10.337927]
[1745612810616,0.05,1802.9,1802.8,4.791]
[1745612813424,5.54757357,1802.6,1802.4,16.641]
[1745612813628,6.34687357,1802.6,1802.5,4.764]
[1745612816351,6.34687357,1802.6,1801.8,8.54997398]
[1745612816352,5.54846584,1802.3,1802.2,4.764]
[1745612816527,5.54891334,1802.2,1802.0,4.764]
[1745612816727,5.54908162,1802.1,1802.0,4.764]
[1745612816933,6.32108162,1802.1,1802.0,4.764]
[1745612820272,6.30713676,1802.3,1802.0,4.764]
[1745612820566,5.54877495,1802.2,1802.0,4.764]
[1745612821948,6.30714903,1802.3,1802.0,4.764]
[1745612822254,5.54908162,1802.1,1802.0,4.764]
[1745612823458,5.54905594,1802.2,1802.0,4.764]
[1745612823823,5.54902917,1802.2,1802.0,4.764]
[1745612824024,5.54901353,1802.2,1802.0,4.764]
[1745612824652,5.54908162,1802.1,1802.0,4.764]
[1745612824857,5.54901353,1802.2,1802.0,4.764]
[1745612826324,6.30710801,1802.3,1802.0,4.764]
[1745612826652,6.30710801,1802.3,1802.0,11.95212114]
[1745612826653,0.7585,1802.3,1802.0,11.95212114]
[1745612826841,5.54822046,1802.4,1802.0,11.08676842]
[1745612828963,11.0966351,1802.4,1802.0,11.08676842]
[1745612829360,5.54822046,1802.4,1802.0,11.08676842]
[1745612830064,5.54848359,1802.3,1802.0,11.08676842]
[1745612830264,5.54822046,1802.4,1802.0,11.08676842]
[1745612830647,11.09663731,1802.4,1802.0,11.08676842]
[1745612830853,5.54847325,1802.3,1802.0,5.5374]
[1745612831259,5.54890981,1802.2,1802.0,5.5374]
[1745612833579,5.54969754,1801.9,1801.6,17.4247]
[1745612833877,5.54969754,1801.9,1801.7,4.765]
[1745612834170,5.54951711,1802.0,1801.7,4.765]
[1745612834584,5.54913327,1802.1,1801.7,10.31530901]
[1745612834786,6.34672958,1802.2,1801.8,5.54988465]
[1745612834994,0.7978,1802.2,1801.9,5.54969604]
[1745612835282,0.7978,1802.2,1801.8,5.54991857]
[1745612835485,12.43815425,1802.4,1802.0,11.09853553]
[1745612835652,6.32815425,1802.4,1802.1,4.765]
[1745612836084,0.7799,1802.4,1802.1,10.31398974]
[1745612836285,6.32806556,1802.4,1802.1,10.31398974]
[1745612836484,6.32806556,1802.4,1802.1,4.765]
[1745612837789,6.32807644,1802.4,1802.1,10.31399232]
[1745612838691,6.32807644,1802.4,1802.1,4.765]
[1745612839963,5.54851229,1802.3,1802.1,4.765]
[1745612840703,5.54851229,1802.3,1801.6,17.187]
[1745612840704,6.35362166,1801.6,1801.4,0.5]
[1745612840863,10.20396903,1801.5,1801.4,0.5]
[1745612841055,10.20396903,1801.5,1800.8,4.765]
[1745612841056,5.55277916,1800.9,1800.8,4.765]
[1745612841262,5.55370432,1800.6,1800.3,0.7577]
[1745612841559,5.55416966,1800.5,1800.4,4.765]
[1745612841756,5.55389184,1800.6,1800.4,4.765]
[1745612841992,5.55401277,1800.5,1800.1,17.4477]
[1745612842199,5.55401277,1800.5,1800.2,4.765]
[1745612842799,5.55401277,1800.5,1800.1,17.4477]
[1745612842974,5.55401277,1800.5,1800.3,4.765]
[1745612843299,11.10828212,1800.5,1800.3,4.765]
[1745612843508,5.55432126,1800.4,1800.3,4.765]
[1745612843870,5.55474103,1800.3,1800.1,17.4477]
[1745612844106,5.55450507,1800.4,1800.2,4.818]
[1745612844299,5.55450507,1800.4,1800.1,17.4477]
[1745612844503,5.55450507,1800.4,1800.3,4.818]
[1745612858081,6.8811,1800.8,1800.3,5.2998]
[1745612858287,6.11,1800.8,1800.5,0.7721]
[1745612858486,11.66320863,1800.8,1800.5,0.7721]
[1745612858788,5.55344093,1800.7,1800.3,11.14453583]
[1745612859182,5.55344093,1800.7,1800.4,5.55430566]
[1745612859511,5.55344093,1800.7,1800.3,11.14453583]
[1745612859898,5.55410204,1800.5,1800.4,4.82]
[1745612860992,6.37550508,1800.6,1800.4,4.82]
[1745612862317,0.8218,1800.6,1800.4,4.82]
[1745612862815,11.92965328,1800.6,1800.4,4.82]
[1745612863113,5.55401277,1800.5,1800.4,4.82]
[1745612863997,7.61048977,1800.6,1800.4,4.82]
[1745612865094,13.16443035,1800.6,1800.4,4.82]
[1745612865422,13.16443036,1800.6,1800.4,4.82]
[1745612865591,7.61048977,1800.6,1800.2,5.55491329]
[1745612865791,6.3756584,1800.6,1800.3,4.821]
[1745612866027,11.92959212,1800.6,1800.3,4.821]
[1745612866213,11.92961665,1800.6,1800.3,4.821]
[1745612866417,6.3756584,1800.6,1800.3,4.821]
[1745612866612,6.3756584,1800.6,1800.2,5.55491329]
[1745612866805,6.3756584,1800.6,1800.3,4.821]
[1745612867006,0.8218,1800.6,1800.3,10.37535511]
[1745612867207,6.8981,1800.8,1800.5,5.55401277]
[1745612867529,6.11,1800.8,1800.5,6.37660473]
[1745612867929,11.6631478,1800.8,1800.5,6.37660473]
[1745612869226,5.55342356,1800.7,1800.3,10.37547218]
[1745612869426,5.5531478,1800.8,1800.4,5.55417581]
[1745612869607,5.5531478,1800.8,1800.4,11.10830406]
[1745612869808,5.5531478,1800.8,1800.4,5.55411925]
[1745612870328,5.5533999,1800.7,1800.4,5.55411925]
[1745612870727,5.5533999,1800.7,1800.3,11.19821022]
[1745612870900,5.5533999,1800.7,1800.3,16.75263352]
[1745612871100,5.5533999,1800.7,1800.3,11.19821022]
[1745612871721,5.5533999,1800.7,1800.4,5.55428928]
[1745612872541,5.5533999,1800.7,1800.3,11.19821022]
[1745612873118,6.34808454,1800.6,1800.3,11.19840947]
[1745612873528,5.55353548,1800.7,1800.3,11.19840947]
[1745612873834,6.34736677,1800.8,1800.4,5.55422366]
[1745612874017,6.34736677,1800.8,1800.4,5.55418085]
[1745612874406,6.34736677,1800.8,1800.3,16.75265583]
[1745612874634,5.55348347,1800.7,1800.3,11.19821233]
[1745612875142,5.55348347,1800.7,1800.4,5.55422784]
[1745612875436,5.55348347,1800.7,1800.3,11.19821233]
[1745612875641,5.55380732,1800.6,1800.3,11.19821233]
[1745612877241,11.10775097,1800.6,1800.3,5.6438]
[1745612877445,11.10775892,1800.6,1800.3,5.6438]
[1745612877647,11.10774088,1800.6,1800.3,5.6438]
[1745612877941,11.10774088,1800.6,1800.4,4.768]
[1745612877942,5.55380732,1800.6,1800.4,4.768]